[Event "AUT Bundesliga Women 2021-22"]
[Site "Austria"]
[Date "2022.03.26"]
[Round "6.10"]
[White "Mayrhuber, Nikola"]
[Black "Kurapova, Olga"]
[Result "0-1"]
[ECO "D27"]
[WhiteElo "2118"]
[BlackElo "1893"]
[Annotator "ChessBase"]
[PlyCount "84"]
[EventDate "2021.11.06"]
[EventType "team-tourn"]
[EventCountry "AUT"]
[SourceTitle "playchess.com"]
[Source "ChessBase"]
[SourceQuality "1"]
[TimeControl "40/5400+30:1800+30"]

1. d4 {[%emt 0:00:04]} d5 {[%emt 0:00:06]} 2. c4 {[%emt 0:00:07]} dxc4 {[%emt 0:00:04]} 3. Nf3 {[%emt 0:04:57]} Nf6 {[%emt 0:00:36]} 4. e3 {[%emt 0:00:07]} e6 {[%emt 0:00:07]} 5. Bxc4 {[%emt 0:00:40]} c5 {[%emt 0:00:05]} 6. O-O a6 {[%emt 0:00:44]} 7. a3 {[%emt 0:13:15]} b5 {[%emt 0:02:52]} 8. Ba2 {[%emt 0:00:28]} Bb7 {[%emt 0:01:10]} 9. Nc3 {[%emt 0:00:52]} Nbd7 {[%emt 0:06:58]} 10. Qe2 {[%emt 0:01:37]} Be7 {[%emt 0:03:11]} 11. Rd1 {[%emt 0:03:33]} Qc7 {[%emt 0:01:17]} 12. e4 {[%emt 0:15:38]} cxd4 {[%emt 0:02:58]} 13. Nxd4 {[%emt 0:02:44]} Nc5 {[%emt 0:12:22]} 14. e5 {[%emt 0:05:45]} Nfe4 {[%emt 0:09:14]} 15. Nxe4 {[%emt 0:03:30]} Nxe4 {[%emt 0:00:53]} 16. Bf4 {[%emt 0:01:20]} O-O {[%emt 0:14:56]} 17. Qg4 {[%emt 0:07:20]} Bc5 {[%emt 0:09:30]} 18. Rac1 {[%emt 0:05:12]} Qe7 {[%emt 0:01:24]} 19. Bh6 {[%emt 0:08:41]} f5 {[%emt 0:00:11]} 20. Bxe6+ {[%emt 0:05:05]} Kh8 {[%emt 0:01:42]} 21. Nxf5 {[%emt 0:05:07]} Rxf5 {[%emt 0:00:10]} 22. Rd7 {[%emt 0:03:59]} Rg5 {[%emt 0:02:15]} 23. Bxg5 {[%emt 0:06:57]} Qxg5 {[%emt 0:01:53]} 24. Rxc5 {[%emt 0:03:17]} Qxg4 {[%emt 0:00:36]} 25. Bxg4 {[%emt 0:00:07]} Nxc5 {[%emt 0:00:11]} 26. Rc7 {[%emt 0:00:18]} h5 {[%emt 0:03:59]} 27. Be2 {[%emt 0:01:21]} Rc8 {[%emt 0:00:39]} 28. Re7 {[%emt 0:01:13]} Bd5 {[%emt 0:01:30]} 29. f4 {[%emt 0:01:01]} Ne4 {[%emt 0:01:15]} 30. g3 {[%emt 0:00:36]} Rc1+ {[%emt 0:00:54]} 31. Kg2 {[%emt 0:00:05]} Rc2 {[%emt 0:00:07]} 32. Kf1 {[%emt 0:00:44]} Rxb2 {[%emt 0:05:36]} 33. Re8+ {[%emt 0:00:29]} Kh7 {[%emt 0:00:47]} 34. Bd3 {[%emt 0:00:30]} Rd2 {[%emt 0:05:21]} 35. Bxe4+ {[%emt 0:00:36]} Bxe4 {[%emt 0:00:02]} 36. Re6 {[%emt 0:00:35]} a5 {[%emt 0:01:54]} 37. Rb6 {[%emt 0:00:30]} Bd3+ {[%emt 0:01:30]} 38. Ke1 {[%emt 0:00:06]} Rxh2 {[%emt 0:00:26]} 39. Rd6 {[%emt 0:00:58]} Bc4 {[%emt 0:00:23]} 40. Rb6 {[%emt 0:00:33]} Rg2 {[%emt 0:01:31]} 41. Rb7 {[%emt 0:10:03]} Rxg3 {[%emt 0:00:38]} 42. Kf2 {[%emt 0:00:12]} Rf3+ {[%emt 0:00:50]} 0-1

[Event "AUT Bundesliga Women 2021-22"]
[Site "Austria"]
[Date "2022.03.26"]
[Round "6.11"]
[White "Wielander, Magdalena"]
[Black "Konecny, Sophie"]
[Result "0-1"]
[ECO "C09"]
[WhiteElo "1178"]
[BlackElo "1835"]
[Annotator "NA"]
[PlyCount "50"]
[EventDate "2021.11.06"]
[EventType "team-tourn"]
[EventCountry "AUT"]
[SourceTitle "playchess.com"]
[Source "ChessBase"]
[SourceQuality "1"]
[TimeControl "40/5400+30:1800+30"]

1. e4 {[%emt 0:00:02]} e6 {[%emt 0:00:06]} 2. d4 {[%emt 0:00:03]} d5 {[%emt 0:00:03]} 3. Nd2 {[%emt 0:00:03]} c5 {[%emt 0:00:05]} 4. exd5 {[%emt 0:00:11]} exd5 {[%emt 0:00:07]} 5. Ngf3 {[%emt 0:02:01]} Nc6 {[%emt 0:00:23]} 6. dxc5 {[%emt 0:01:28]} Bxc5 {[%emt 0:01:54]} 7. Nb3 {[%emt 0:00:19]} Bb6 {[%emt 0:02:46]} 8. Bd3 {[%emt 0:02:15]} Nge7 {[%emt 0:03:27]} 9. c3 {[%emt 0:03:20]} Bg4 {[%emt 0:04:02]} 10. O-O {[%emt 0:03:39]} h6 {[%emt 0:02:44]} 11. Re1 {[%emt 0:05:32]} O-O {[%emt 0:02:23]} 12. Bc2 {[%emt 0:07:25]} Qd7 {[%emt 0:05:58]} 13. Be3 {[%emt 0:06:23]} Qc7 {[%emt 0:17:00]} 14. Nbd4 {[%emt 0:06:53]} Nxd4 {[%emt 0:12:27]} 15. Bxd4 {[%emt 0:00:34]} Bxf3 {[%emt 0:01:45]} 16. Qxf3 {[%emt 0:02:22]} Bxd4 {[%emt 0:01:39]} 17. Qd3 {[%emt 0:00:42]} Bxf2+ {[%emt 0:01:20]} 18. Kxf2 {[%emt 0:00:26]} Qb6+ {[%emt 0:09:28]} 19. Kf1 {[%emt 0:03:01]} g6 {[%emt 0:03:09]} 20. b4 {[%emt 0:06:32]} Rae8 {[%emt 0:09:28]} 21. Re3 {[%emt 0:07:05]} Nf5 {[%emt 0:02:09]} 22. Re2 {[%emt 0:09:29]} Ne3+ {[%emt 0:02:14]} 23. Ke1 {[%emt 0:00:20]} Nxc2+ {[%emt 0:00:49]} 24. Qxc2 {[%emt 0:00:34]} Qg1+ {[%emt 0:00:10]} 25. Kd2 {[%emt 0:00:26]} Qxa1 {[%emt 0:00:12]} 0-1

[Event "AUT Bundesliga Women 2021-22"]
[Site "Austria"]
[Date "2022.03.26"]
[Round "6.12"]
[White "Wu, Min"]
[Black "Wolf, Elena"]
[Result "1-0"]
[ECO "C47"]
[WhiteElo "1952"]
[BlackElo "1147"]
[Annotator "NA"]
[PlyCount "53"]
[EventDate "2021.11.06"]
[EventType "team-tourn"]
[EventCountry "AUT"]
[SourceTitle "playchess.com"]
[Source "ChessBase"]
[SourceQuality "1"]
[TimeControl "40/5400+30:1800+30"]

1. e4 {[%emt 0:00:03]} e5 {[%emt 0:00:05]} 2. Nf3 {[%emt 0:00:05]} Nc6 {[%emt 0:00:04]} 3. Nc3 {[%emt 0:00:04]} Nf6 {[%emt 0:00:04]} 4. d4 {[%emt 0:00:05]} exd4 {[%emt 0:00:04]} 5. Nxd4 {[%emt 0:00:04]} Bb4 {[%emt 0:00:10]} 6. Nxc6 {[%emt 0:00:06]} bxc6 {[%emt 0:00:18]} 7. Bd3 {[%emt 0:00:05]} d5 {[%emt 0:00:09]} 8. exd5 {[%emt 0:00:04]} cxd5 {[%emt 0:00:04]} 9. O-O {[%emt 0:00:05]} O-O {[%emt 0:00:04]} 10. h3 {[%emt 0:00:22]} Re8 {[%emt 0:02:58]} 11. Qf3 {[%emt 0:02:03]} Be6 {[%emt 0:02:16]} 12. Bf4 {[%emt 0:05:02]} c6 {[%emt 0:12:10]} 13. Ne2 {[%emt 0:12:18]} Bd6 {[%emt 0:13:30]} 14. Rad1 {[%emt 0:12:21]} Qd7 {[%emt 0:15:18]} 15. Nd4 {[%emt 0:33:19]} Bxf4 {[%emt 0:12:45]} 16. Qxf4 {[%emt 0:00:44]} Rab8 {[%emt 0:05:08]} 17. b3 {[%emt 0:02:40]} Qb7 {[%emt 0:05:54]} 18. c3 {[%emt 0:11:52]} Bd7 {[%emt 0:02:29]} 19. Rfe1 {[%emt 0:03:46]} Qb6 {[%emt 0:04:31]} 20. Nf5 {[%emt 0:04:11]} Kf8 {[%emt 0:06:49]} 21. Nxg7 {[%emt 0:02:42]} Kxg7 {[%emt 0:03:42]} 22. Qg5+ {[%emt 0:00:05]} Kf8 {[%emt 0:00:36]} 23. Qxf6 {[%emt 0:00:22]} Be6 {[%emt 0:06:12]} 24. Bf5 {[%emt 0:01:42]} c5 {[%emt 0:00:33]} 25. Bxe6 {[%emt 0:00:10]} Rxe6 {[%emt 0:00:17]} 26. Rxe6 {[%emt 0:00:05]} Qxe6 {[%emt 0:03:26]} 27. Qh8+ {[%emt 0:00:05]} 1-0

[Event "AUT Bundesliga Women 2021-22"]
[Site "Austria"]
[Date "2022.03.26"]
[Round "6.13"]
[White "Rozman, Monika"]
[Black "Mihok-Juhasz, Barbara"]
[Result "1/2-1/2"]
[ECO "B04"]
[WhiteElo "2094"]
[BlackElo "2275"]
[Annotator "ChessBase"]
[PlyCount "98"]
[EventDate "2021.11.06"]
[EventType "team-tourn"]
[EventCountry "AUT"]
[SourceTitle "playchess.com"]
[Source "ChessBase"]
[SourceQuality "1"]
[TimeControl "40/5400+30:1800+30"]

1. e4 {[%emt 0:00:02]} Nf6 {[%emt 0:00:07]} 2. e5 {[%emt 0:01:01]} Nd5 {[%emt 0:00:05]} 3. d4 {[%emt 0:00:17]} d6 {[%emt 0:00:09]} 4. Nf3 {[%emt 0:00:08]} g6 {[%emt 0:00:08]} 5. Be2 {[%emt 0:01:50]} Bg7 {[%emt 0:01:08]} 6. O-O {[%emt 0:00:15]} dxe5 {[%emt 0:04:04]} 7. Nxe5 {[%emt 0:00:43]} O-O {[%emt 0:00:08]} 8. Re1 {[%emt 0:04:52]} c6 {[%emt 0:04:50]} 9. Na3 {[%emt 0:02:56]} Be6 {[%emt 0:18:29]} 10. h4 {[%emt 0:06:11]} Nd7 {[%emt 0:00:43]} 11. Nf3 {[%emt 0:00:40]} Bg4 {[%emt 0:02:35]} 12. c3 {[%emt 0:00:33]} Re8 {[%emt 0:18:26]} 13. Nc4 {[%emt 0:05:01]} Qc7 {[%emt 0:03:19]} 14. Nfe5 {[%emt 0:01:31]} Nxe5 {[%emt 0:00:25]} 15. Nxe5 {[%emt 0:00:31]} Bxe2 {[%emt 0:00:27]} 16. Qxe2 {[%emt 0:00:34]} e6 {[%emt 0:09:16]} 17. c4 {[%emt 0:06:38]} Nf6 {[%emt 0:00:37]} 18. Bf4 {[%emt 0:01:48]} Qd8 {[%emt 0:02:32]} 19. Nf3 {[%emt 0:02:02]} Nd7 {[%emt 0:00:47]} 20. Rad1 {[%emt 0:02:37]} Qa5 {[%emt 0:04:20]} 21. b4 {[%emt 0:00:26]} Qf5 {[%emt 0:01:05]} 22. Bd6 {[%emt 0:09:27]} a5 {[%emt 0:09:58]} 23. a3 {[%emt 0:11:19]} axb4 {[%emt 0:00:21]} 24. axb4 {[%emt 0:00:03]} Qg4 {[%emt 0:09:27]} 25. Qc2 {[%emt 0:04:13]} Nf6 {[%emt 0:00:27]} 26. Be5 {[%emt 0:05:49]} Ra3 {[%emt 0:03:26]} 27. Bg3 {[%emt 0:05:50]} Rea8 {[%emt 0:01:46]} 28. Ne5 {[%emt 0:01:39]} Qf5 {[%emt 0:00:12]} 29. Qxf5 {[%emt 0:00:57]} gxf5 {[%emt 0:00:04]} 30. Rb1 {[%emt 0:01:02]} Ne4 {[%emt 0:00:25]} 31. b5 {[%emt 0:02:39]} Nc3 {[%emt 0:00:46]} 32. Rb4 {[%emt 0:08:47]} cxb5 {[%emt 0:00:08]} 33. cxb5 {[%emt 0:00:54]} Ra1 {[%emt 0:00:56]} 34. Rxa1 {[%emt 0:00:27]} Rxa1+ {[%emt 0:00:04]} 35. Kh2 {[%emt 0:00:03]} Nd5 {[%emt 0:04:52]} 36. Rc4 {[%emt 0:00:19]} Ra8 {[%emt 0:00:30]} 37. Nd3 {[%emt 0:00:43]} Bf6 {[%emt 0:00:10]} 38. Nf4 {[%emt 0:06:54]} Nxf4 {[%emt 0:01:27]} 39. Bxf4 {[%emt 0:00:03]} Bxh4 {[%emt 0:00:04]} 40. Rc7 {[%emt 0:03:20]} b6 {[%emt 0:00:54]} 41. Rb7 {[%emt 0:30:49]} Bd8 {[%emt 0:13:18]} 42. Bh6 {[%emt 0:00:00]} Bf6 {[%emt 0:02:50]} 43. Rxb6 {[%emt 0:00:00]} Bxd4 {[%emt 0:00:11]} 44. Ra6 {[%emt 0:00:00]} Rb8 {[%emt 0:03:31]} 45. f4 {[%emt 0:00:00]} Bb6 {[%emt 0:04:57]} 46. Ra3 {[%emt 0:00:00]} Bf2 {[%emt 0:01:00]} 47. Rf3 {[%emt 0:00:40]} Bh4 48. Rh3 {[%emt 0:02:34]} Bf2 {[%emt 0:00:40]} 49. Rf3 {[%emt 0:00:10]} Bh4 {[%emt 0:01:47]} 1/2-1/2

[Event "AUT Bundesliga Women 2021-22"]
[Site "Austria"]
[Date "2022.03.26"]
[Round "6.14"]
[White "Miturova, Magdalena"]
[Black "Mihelic, Vesna"]
[Result "1-0"]
[ECO "C60"]
[WhiteElo "2205"]
[BlackElo "1875"]
[Annotator "ChessBase"]
[PlyCount "57"]
[EventDate "2021.11.06"]
[EventType "team-tourn"]
[EventCountry "AUT"]
[SourceTitle "playchess.com"]
[Source "ChessBase"]
[SourceQuality "1"]
[TimeControl "40/5400+30:1800+30"]

1. e4 {[%emt 0:00:05]} e5 {[%emt 0:00:07]} 2. Nf3 {[%emt 0:00:07]} Nc6 {[%emt 0:00:08]} 3. Bb5 {[%emt 0:00:11]} g6 {[%emt 0:00:08]} 4. c3 {[%emt 0:00:18]} a6 {[%emt 0:00:08]} 5. Bc4 {[%emt 0:00:09]} d6 {[%emt 0:02:05]} 6. d4 {[%emt 0:01:34]} Bg7 {[%emt 0:03:07]} 7. Bg5 {[%emt 0:01:11]} Nge7 {[%emt 0:01:41]} 8. dxe5 {[%emt 0:00:52]} dxe5 {[%emt 0:00:52]} 9. Nbd2 {[%emt 0:00:12]} O-O {[%emt 0:01:08]} 10. b4 {[%emt 0:04:39]} h6 {[%emt 0:02:02]} 11. Be3 {[%emt 0:00:36]} Kh7 {[%emt 0:01:05]} 12. h4 {[%emt 0:06:58]} f6 {[%emt 0:09:08]} 13. a4 {[%emt 0:03:17]} Bd7 {[%emt 0:03:07]} 14. Nb3 {[%emt 0:09:18]} Qc8 {[%emt 0:02:46]} 15. Nc5 {[%emt 0:06:17]} Bg4 {[%emt 0:01:13]} 16. Qb3 {[%emt 0:00:38]} Nd8 {[%emt 0:01:23]} 17. a5 {[%emt 0:05:19]} Nec6 {[%emt 0:03:49]} 18. Nh2 {[%emt 0:03:49]} Re8 {[%emt 0:03:33]} 19. Nxg4 {[%emt 0:05:34]} Qxg4 {[%emt 0:00:04]} 20. Kf1 {[%emt 0:00:23]} Na7 {[%emt 0:06:08]} 21. Rd1 {[%emt 0:03:28]} Nb5 {[%emt 0:03:21]} 22. Rd7 {[%emt 0:06:10]} Ne6 {[%emt 0:45:24]} 23. Bxe6 {[%emt 0:03:53]} f5 {[%emt 0:00:18]} 24. h5 {[%emt 0:03:36]} Nd6 {[%emt 0:05:40]} 25. hxg6+ {[%emt 0:03:30]} Qxg6 {[%emt 0:00:34]} 26. Rxd6 {[%emt 0:00:19]} cxd6 {[%emt 0:00:07]} 27. Bxf5 {[%emt 0:00:06]} Qxf5 {[%emt 0:00:17]} 28. exf5 {[%emt 0:00:10]} dxc5 {[%emt 0:00:05]} 29. f6 {[%emt 0:00:43]} 1-0

[Event "AUT Bundesliga Women 2021-22"]
[Site "Austria"]
[Date "2022.03.26"]
[Round "6.15"]
[White "Goeschl, Ortrun"]
[Black "Exler, Veronika"]
[Result "0-1"]
[ECO "A00"]
[WhiteElo "1898"]
[BlackElo "2089"]
[Annotator "ChessBase"]
[PlyCount "84"]
[EventDate "2021.11.06"]
[EventType "team-tourn"]
[EventCountry "AUT"]
[SourceTitle "playchess.com"]
[Source "ChessBase"]
[SourceQuality "1"]
[TimeControl "40/5400+30:1800+30"]

1. Nc3 {[%emt 0:00:07]} d5 {[%emt 0:00:07]} 2. e4 {[%emt 0:00:06]} d4 {[%emt 0:00:06]} 3. Nce2 {[%emt 0:00:05]} e5 {[%emt 0:00:11]} 4. Ng3 {[%emt 0:00:06]} c5 {[%emt 0:02:07]} 5. Bc4 {[%emt 0:00:29]} Nc6 {[%emt 0:01:47]} 6. Nf3 {[%emt 0:02:34]} Be7 {[%emt 0:32:27]} 7. d3 {[%emt 0:02:46]} h5 {[%emt 0:03:30]} 8. h3 {[%emt 0:04:49]} h4 {[%emt 0:08:19]} 9. Ne2 {[%emt 0:04:02]} Nh6 {[%emt 0:14:34]} 10. c3 {[%emt 0:08:09]} g5 {[%emt 0:05:59]} 11. Qb3 {[%emt 0:31:47]} f6 {[%emt 0:02:18]} 12. Bd5 {[%emt 0:03:07]} Na5 {[%emt 0:06:10]} 13. Qc2 {[%emt 0:04:37]} Nf7 {[%emt 0:07:21]} 14. Nh2 {[%emt 0:07:33]} Bd7 {[%emt 0:01:33]} 15. Ng4 {[%emt 0:04:47]} Rc8 {[%emt 0:01:08]} 16. Bd2 {[%emt 0:01:28]} Qb6 {[%emt 0:01:22]} 17. c4 {[%emt 0:05:04]} Nc6 {[%emt 0:00:06]} 18. f3 {[%emt 0:01:01]} Nb4 {[%emt 0:00:47]} 19. Bxb4 {[%emt 0:05:40]} Qxb4+ {[%emt 0:00:26]} 20. Qd2 {[%emt 0:00:24]} Qxd2+ {[%emt 0:02:20]} 21. Kxd2 {[%emt 0:00:01]} Bc6 {[%emt 0:00:48]} 22. Bxf7+ {[%emt 0:03:10]} Kxf7 {[%emt 0:00:02]} 23. Rab1 {[%emt 0:01:26]} a6 {[%emt 0:01:53]} 24. a3 {[%emt 0:01:47]} b5 {[%emt 0:00:27]} 25. b3 {[%emt 0:00:08]} Rb8 {[%emt 0:00:25]} 26. Rhc1 {[%emt 0:00:15]} Bd7 {[%emt 0:00:46]} 27. Rh1 {[%emt 0:04:45]} Rb7 {[%emt 0:00:25]} 28. Kc2 {[%emt 0:00:24]} Rhb8 {[%emt 0:01:05]} 29. Nh6+ {[%emt 0:00:27]} Kg6 {[%emt 0:00:13]} 30. Ng4 {[%emt 0:00:10]} Bd6 {[%emt 0:04:42]} 31. Nc1 {[%emt 0:01:06]} a5 {[%emt 0:00:40]} 32. Nf2 {[%emt 0:02:14]} Be6 {[%emt 0:00:56]} 33. Ne2 {[%emt 0:00:18]} Be7 {[%emt 0:00:49]} 34. Rhg1 {[%emt 0:00:28]} Bd7 {[%emt 0:00:22]} 35. Rgc1 {[%emt 0:00:21]} bxc4 {[%emt 0:00:56]} 36. dxc4 {[%emt 0:00:02]} a4 {[%emt 0:00:08]} 37. b4 {[%emt 0:02:29]} cxb4 {[%emt 0:00:07]} 38. axb4 {[%emt 0:00:06]} Rxb4 {[%emt 0:00:10]} 39. Nd3 {[%emt 0:00:05]} Rxc4+ {[%emt 0:01:18]} 40. Kd1 {[%emt 0:00:14]} Rxc1+ {[%emt 0:00:14]} 41. Rxc1 {[%emt 0:30:02]} a3 {[%emt 0:02:34]} 42. Ra1 {[%emt 0:00:00]} Be6 {[%emt 0:03:09]} 0-1

[Event "AUT Bundesliga Women 2021-22"]
[Site "Austria"]
[Date "2022.03.26"]
[Round "6.16"]
[White "Moerwald, Magdalena"]
[Black "Zeber, Katja"]
[Result "1-0"]
[ECO "C44"]
[WhiteElo "1895"]
[BlackElo "1625"]
[Annotator "NA"]
[PlyCount "59"]
[EventDate "2021.11.06"]
[EventType "team-tourn"]
[EventCountry "AUT"]
[SourceTitle "playchess.com"]
[Source "ChessBase"]
[SourceQuality "1"]
[TimeControl "40/5400+30:1800+30"]

1. e4 {[%emt 0:00:03]} e5 {[%emt 0:00:06]} 2. Nf3 {[%emt 0:00:07]} Nc6 {[%emt 0:00:13]} 3. d4 {[%emt 0:00:09]} Qf6 {[%emt 0:06:43]} 4. d5 {[%emt 0:03:40]} Nd4 {[%emt 0:07:52]} 5. Nxd4 {[%emt 0:04:16]} exd4 {[%emt 0:00:08]} 6. Nd2 {[%emt 0:03:55]} Bb4 {[%emt 0:08:53]} 7. a3 {[%emt 0:05:16]} Bxd2+ 8. Qxd2 {[%emt 0:03:43]} Ne7 {[%emt 0:19:27]} 9. b4 {[%emt 0:03:46]} d3 {[%emt 0:08:26]} 10. c3 {[%emt 0:01:39]} Qg6 {[%emt 0:07:20]} 11. Qxd3 {[%emt 0:03:03]} d6 {[%emt 0:04:01]} 12. Bf4 {[%emt 0:05:21]} O-O {[%emt 0:04:15]} 13. g3 {[%emt 0:16:24]} Qf6 {[%emt 0:07:40]} 14. Qd4 {[%emt 0:04:38]} Qxd4 {[%emt 0:01:04]} 15. cxd4 {[%emt 0:00:07]} f5 {[%emt 0:00:51]} 16. f3 {[%emt 0:03:41]} fxe4 {[%emt 0:05:24]} 17. fxe4 {[%emt 0:00:13]} Ng6 {[%emt 0:00:20]} 18. Be3 {[%emt 0:02:48]} Bg4 {[%emt 0:02:18]} 19. Bg2 {[%emt 0:01:51]} Rae8 {[%emt 0:05:31]} 20. Rf1 {[%emt 0:06:01]} Rxf1+ {[%emt 0:00:48]} 21. Kxf1 {[%emt 0:00:20]} Bf5 {[%emt 0:00:28]} 22. exf5 {[%emt 0:00:23]} Rxe3 {[%emt 0:00:53]} 23. fxg6 {[%emt 0:00:07]} hxg6 {[%emt 0:00:22]} 24. Rc1 {[%emt 0:01:01]} Re7 {[%emt 0:08:03]} 25. Bh3 {[%emt 0:01:08]} Kf8 {[%emt 0:00:54]} 26. Be6 {[%emt 0:00:44]} b6 {[%emt 0:00:35]} 27. Ke2 {[%emt 0:00:36]} g5 {[%emt 0:00:49]} 28. Kf3 {[%emt 0:00:13]} g6 {[%emt 0:00:31]} 29. Kg4 {[%emt 0:01:00]} Rg7 {[%emt 0:00:33]} 30. Kxg5 {[%emt 0:00:26]} 1-0

[Event "AUT Bundesliga Women 2021-22"]
[Site "Austria"]
[Date "2022.03.26"]
[Round "6.17"]
[White "Landl, Margot"]
[Black "Zatonskih, Anna"]
[Result "1/2-1/2"]
[ECO "C10"]
[WhiteElo "2043"]
[BlackElo "2403"]
[Annotator "ChessBase"]
[PlyCount "54"]
[EventDate "2021.11.06"]
[EventType "team-tourn"]
[EventCountry "AUT"]
[SourceTitle "playchess.com"]
[Source "ChessBase"]
[SourceQuality "1"]
[TimeControl "40/5400+30:1800+30"]

1. e4 {[%emt 0:00:02]} e6 {[%emt 0:00:16]} 2. d4 {[%emt 0:00:09]} d5 {[%emt 0:00:02]} 3. Nc3 {[%emt 0:00:21]} dxe4 {[%emt 0:00:11]} 4. Nxe4 {[%emt 0:00:07]} Bd7 {[%emt 0:00:06]} 5. Nf3 {[%emt 0:00:27]} Bc6 {[%emt 0:00:07]} 6. Bd3 {[%emt 0:00:59]} Nd7 {[%emt 0:00:08]} 7. Qe2 {[%emt 0:04:50]} Ngf6 {[%emt 0:04:33]} 8. Bd2 {[%emt 0:06:05]} Nxe4 {[%emt 0:03:55]} 9. Bxe4 {[%emt 0:00:08]} Bxe4 {[%emt 0:00:11]} 10. Qxe4 {[%emt 0:00:06]} c6 {[%emt 0:00:05]} 11. c4 {[%emt 0:11:20]} Nf6 {[%emt 0:04:13]} 12. Qe2 {[%emt 0:06:43]} Be7 {[%emt 0:00:25]} 13. O-O {[%emt 0:02:21]} O-O {[%emt 0:00:59]} 14. Bc3 {[%emt 0:06:08]} Qc7 {[%emt 0:06:40]} 15. Rfd1 {[%emt 0:07:13]} Rad8 {[%emt 0:03:07]} 16. Rac1 {[%emt 0:02:32]} Rfe8 {[%emt 0:01:49]} 17. b4 {[%emt 0:07:08]} Qf4 {[%emt 0:08:26]} 18. Re1 {[%emt 0:06:59]} Qb8 {[%emt 0:09:30]} 19. Ne5 {[%emt 0:03:31]} Bd6 {[%emt 0:04:10]} 20. a4 {[%emt 0:02:09]} Nd7 {[%emt 0:04:00]} 21. g3 {[%emt 0:02:46]} Nf8 {[%emt 0:09:55]} 22. f4 {[%emt 0:07:27]} Qc7 {[%emt 0:05:24]} 23. Nf3 {[%emt 0:00:23]} Qb8 {[%emt 0:00:14]} 24. Ne5 {[%emt 0:00:05]} Qc7 {[%emt 0:00:05]} 25. Nf3 {[%emt 0:00:02]} Qb8 {[%emt 0:00:06]} 26. Ne5 {[%emt 0:00:04]} Qc7 {[%emt 0:00:08]} 27. Nf3 {[%emt 0:00:07]} Qb8 {[%emt 0:00:06]} 1/2-1/2

[Event "AUT Bundesliga Women 2021-22"]
[Site "Austria"]
[Date "2022.03.26"]
[Round "6.18"]
[White "Papp, Sarah"]
[Black "Truszkiewicz, Eliza"]
[Result "1-0"]
[ECO "C88"]
[WhiteElo "2301"]
[BlackElo "1897"]
[Annotator "ChessBase"]
[PlyCount "65"]
[EventDate "2021.11.06"]
[EventType "team-tourn"]
[EventCountry "AUT"]
[SourceTitle "playchess.com"]
[Source "ChessBase"]
[SourceQuality "1"]
[TimeControl "40/5400+30:1800+30"]

1. e4 {[%emt 0:00:03]} e5 {[%emt 0:00:04]} 2. Nf3 {[%emt 0:00:04]} Nc6 {[%emt 0:00:05]} 3. Bb5 {[%emt 0:00:05]} a6 {[%emt 0:00:13]} 4. Ba4 {[%emt 0:00:05]} Nf6 {[%emt 0:00:21]} 5. O-O {[%emt 0:00:08]} Be7 {[%emt 0:00:25]} 6. Re1 {[%emt 0:00:10]} b5 {[%emt 0:00:25]} 7. Bb3 {[%emt 0:00:06]} d6 {[%emt 0:00:23]} 8. c3 {[%emt 0:00:08]} Bg4 {[%emt 0:00:18]} 9. h3 {[%emt 0:00:21]} Bh5 {[%emt 0:00:17]} 10. d3 {[%emt 0:00:11]} O-O {[%emt 0:00:15]} 11. Nbd2 {[%emt 0:00:07]} Na5 {[%emt 0:01:21]} 12. Bc2 {[%emt 0:00:07]} Nd7 {[%emt 0:02:54]} 13. g4 {[%emt 0:01:58]} Bg6 {[%emt 0:00:38]} 14. b4 {[%emt 0:01:34]} Nb7 {[%emt 0:01:02]} 15. a4 {[%emt 0:06:21]} c5 {[%emt 0:06:06]} 16. a5 {[%emt 0:06:24]} Qc7 {[%emt 0:01:25]} 17. Nf1 {[%emt 0:04:15]} d5 {[%emt 0:07:37]} 18. Ne3 {[%emt 0:00:38]} d4 {[%emt 0:01:22]} 19. Nd5 {[%emt 0:00:24]} Qd8 {[%emt 0:01:48]} 20. cxd4 {[%emt 0:01:22]} cxd4 {[%emt 0:00:49]} 21. Bd2 {[%emt 0:04:40]} h6 {[%emt 0:10:59]} 22. Bb3 {[%emt 0:01:11]} Kh8 {[%emt 0:04:37]} 23. Rc1 {[%emt 0:02:04]} Bd6 {[%emt 0:03:48]} 24. Rc6 {[%emt 0:02:04]} Qb8 {[%emt 0:15:11]} 25. Nh4 {[%emt 0:18:03]} Nd8 {[%emt 0:02:42]} 26. Rc2 {[%emt 0:03:48]} Qb7 {[%emt 0:06:01]} 27. Nf5 {[%emt 0:02:17]} Bxf5 {[%emt 0:01:06]} 28. gxf5 {[%emt 0:00:18]} Rc8 {[%emt 0:06:07]} 29. Rxc8 {[%emt 0:00:28]} Qxc8 {[%emt 0:00:05]} 30. Qh5 {[%emt 0:00:45]} Kh7 {[%emt 0:02:30]} 31. Kh1 {[%emt 0:00:30]} Rh8 {[%emt 0:03:59]} 32. Rg1 {[%emt 0:01:41]} Kg8 {[%emt 0:04:35]} 33. Bxh6 {[%emt 0:01:17]} 1-0

[Event "AUT Bundesliga Women 2021-22"]
[Site "Austria"]
[Date "2022.03.26"]
[Round "6.20"]
[White "Theissl-Pokorna, Regina"]
[Black "Mattersberger, Melanie"]
[Result "1-0"]
[ECO "C45"]
[WhiteElo "2296"]
[BlackElo "1763"]
[Annotator "ChessBase"]
[PlyCount "62"]
[EventDate "2021.11.06"]
[EventType "team-tourn"]
[EventCountry "AUT"]
[SourceTitle "playchess.com"]
[Source "ChessBase"]
[SourceQuality "1"]
[TimeControl "40/5400+30:1800+30"]

1. e4 {[%emt 0:00:04]} e5 {[%emt 0:00:03]} 2. Nf3 {[%emt 0:00:05]} Nc6 {[%emt 0:00:04]} 3. d4 {[%emt 0:00:37]} exd4 {[%emt 0:00:05]} 4. Nxd4 {[%emt 0:00:04]} Bc5 {[%emt 0:00:14]} 5. Be3 {[%emt 0:00:36]} Qf6 {[%emt 0:00:05]} 6. Nb5 {[%emt 0:02:26]} Bxe3 {[%emt 0:05:23]} 7. fxe3 {[%emt 0:00:06]} Qh4+ {[%emt 0:04:36]} 8. g3 {[%emt 0:00:06]} Qxe4 {[%emt 0:08:00]} 9. Nxc7+ {[%emt 0:00:18]} Kd8 {[%emt 0:00:15]} 10. Nxa8 {[%emt 0:00:06]} Qxh1 {[%emt 0:00:07]} 11. Qd6 {[%emt 0:02:07]} Nge7 {[%emt 0:02:25]} 12. Nd2 {[%emt 0:05:27]} Qd5 {[%emt 0:03:29]} 13. Qc7+ {[%emt 0:02:25]} Ke8 {[%emt 0:00:07]} 14. Qxc8+ {[%emt 0:01:53]} Nxc8 {[%emt 0:00:35]} 15. Nc7+ {[%emt 0:00:05]} Kd8 {[%emt 0:00:51]} 16. Nxd5 {[%emt 0:00:08]} Re8 {[%emt 0:02:22]} 17. O-O-O {[%emt 0:02:37]} Nd6 {[%emt 0:01:39]} 18. Nc4 {[%emt 0:02:51]} Ne4 {[%emt 0:01:08]} 19. Bg2 {[%emt 0:03:21]} Nc5 {[%emt 0:10:45]} 20. Nd6 {[%emt 0:01:40]} Rf8 {[%emt 0:02:15]} 21. b4 {[%emt 0:01:19]} Ne6 {[%emt 0:01:16]} 22. Nxb7+ {[%emt 0:00:48]} Kc8 {[%emt 0:00:22]} 23. Nd6+ {[%emt 0:00:54]} Kd8 {[%emt 0:02:43]} 24. Kb2 {[%emt 0:02:38]} Ne5 {[%emt 0:04:47]} 25. Kb3 {[%emt 0:00:56]} Ng4 {[%emt 0:02:33]} 26. h3 {[%emt 0:00:52]} Ne5 {[%emt 0:00:16]} 27. a4 {[%emt 0:00:04]} Nc7 {[%emt 0:02:35]} 28. Nxc7 {[%emt 0:04:16]} Kxc7 {[%emt 0:00:07]} 29. Nc4 {[%emt 0:00:03]} f6 {[%emt 0:01:56]} 30. Nxe5 {[%emt 0:01:05]} fxe5 {[%emt 0:00:05]} 31. Rf1 {[%emt 0:00:03]} Rh8 1-0